[Event "Prague Festival-Challengers 2022"]
[Site "Prague"]
[Date "2022.06.11"]
[Round "4.5"]
[White "Stocek, Jiri"]
[Black "Krzyzanowski, Marcin"]
[Result "0-1"]
[ECO "E10"]
[WhiteElo "2533"]
[BlackElo "2535"]
[Annotator "TA"]
[PlyCount "80"]
[EventDate "2022.06.07"]
[EventType "tourn"]
[EventCountry "CZE"]
[SourceTitle "playchess.com"]
[Source "ChessBase"]
[SourceQuality "1"]
[TimeControl "40/5400+30:1800+30"]

{[%evp 14,80,33,38,54,45,55,48,52,39,37,29,43,0,2,0,0,0,0,0,0,0,0,-125,-107,-213,-208,-205,-207,-236,-232,-223,-234,-206,-239,-251,-253,-409,-416,-408,-412,-447,-427,-466,-427,-542,-525,-872,-364,-348,-304,-426,-363,-408,-408,-405,-395,-565,-550,-965,-877,-939,-912,-1114,-968,-752,-625,-622,-575]} 1. d4 {[%emt 0:00:33]} Nf6 {[%emt 0:00:07]} 2. c4 {[%emt 0:00:52]} e6 {[%emt 0:00:13]} 3. Nf3 {[%emt 0:00:56]} c5 {[%emt 0:00:34]} 4. d5 {[%emt 0:01:20]} b5 {[%emt 0:01:16]} 5. Bg5 {[%emt 0:03:21]} exd5 {[%emt 0:00:17]} 6. cxd5 {[%emt 0:00:10]} h6 {[%emt 0:00:33]} 7. Bxf6 {[%emt 0:04:36]} Qxf6 {[%emt 0:00:05]} 8. Qc2 {[%emt 0:20:12]} Na6 {[%emt 0:08:36] E10: Blumenfeld Gambit.} 9. Nc3 {[%emt 0:02:59]} Rb8 {[%emt 0:07:23]} 10. e4 {[%emt 0:02:16]} c4 {[%emt 0:13:18] White is slightly better.} 11. Be2 {[%emt 0:09:14]} Bd6 {[%emt 0:13:22]} 12. O-O {[%emt 0:12:40]} O-O {[%emt 0:00:50] [#]} 13. Rfe1 $146 {[%emt 0:00:42]} ({Predecessor:} 13. a4 Nb4 14. Qd2 a6 15. axb5 axb5 16. Ra5 Re8 17. Rfa1 Bf4 18. Qd1 Ba6 19. g3 Bc7 20. Rxa6 Nxa6 21. d6 Qxd6 22. Qxd6 Bxd6 23. Rxa6 Bf8 24. Nd2 {½-½ (24) Blagojevic,D (2499)-Llaneza Vega,M (2470) Amantea 2010}) 13... Re8 {[%emt 0:08:44]} 14. a4 {[%emt 0:07:24]} Nb4 $36 {[%emt 0:04:28][%mdl 2048] Black has some pressure.} 15. Qd2 {[%emt 0:01:00]} Bf4 {[%emt 0:02:10]} 16. Qd1 {[%emt 0:03:04]} a6 {[%emt 0:00:53]} 17. axb5 {[%emt 0:10:23]} axb5 {[%emt 0:00:08]} 18. e5 {[%emt 0:00:36]} (18. Bf1 $11 {keeps the balance.}) 18... Bxe5 $17 {[%emt 0:04:08] Black is more active. White is on the road to losing.} 19. Ne4 {[%emt 0:04:05] [#]} (19. Bf1 $17) 19... Bxh2+ $1 $19 {[%emt 0:05:55][%mdl 512]} 20. Nxh2 {[%emt 0:00:24]} Rxe4 {[%emt 0:00:04]} 21. Bf3 {[%emt 0:01:45]} Rxe1+ {[%emt 0:01:16]} 22. Qxe1 {[%emt 0:00:18] aiming for Qe8+.} Qd6 {[%emt 0:01:35]} (22... Qxb2 $2 23. Qe8+ Kh7 24. Be4+ g6 25. Qxf7+ Qg7 26. Bxg6+ Kh8 27. Qe8+ Qg8 28. Qe5+ Qg7 29. Qxb8 $18) 23. Qe8+ {[%emt 0:05:53]} Qf8 {[%emt 0:00:05]} 24. Qe5 {[%emt 0:03:30]} d6 {[%emt 0:00:57]} 25. Qg3 {[%emt 0:00:40]} (25. Qc3 {was worth a try.} Nd3 26. Be4) 25... Qe7 {[%emt 0:02:13]} 26. Be4 {[%emt 0:01:09]} f5 {[%emt 0:01:06]} ({Wrong is} 26... Qxe4 $2 27. Qxd6 Rb7 28. Qxb4 $19) 27. Bb1 {[%emt 0:00:07]} Nxd5 {[%emt 0:05:05]} 28. Nf3 {[%emt 0:00:15]} Qf6 {[%emt 0:02:22] Prevents Nd4.} 29. Ra7 {[%emt 0:00:27]} Rb7 {[%emt 0:01:38]} 30. Ra6 {[%emt 0:00:53]} Rd7 {[%emt 0:02:59]} (30... Qxb2 $142 31. Bxf5 Bxf5 32. Qxd6 Qc1+ 33. Kh2 Nf6) 31. Ra8 {[%emt 0:00:16]} Rd8 {[%emt 0:00:31]} 32. Rb8 {[%emt 0:00:30]} (32. Qh4 {was forced.} Re8 33. Qd4 Qxd4 34. Nxd4) 32... b4 {[%emt 0:02:23]} ({Worse is} 32... Qxb2 33. Bxf5 Qa1+ 34. Kh2 $17) 33. Qh4 {[%emt 0:01:17]} Qxh4 {[%emt 0:04:06]} 34. Nxh4 {[%emt 0:00:04]} Rf8 {[%emt 0:02:19]} 35. Ng6 {[%emt 0:00:29]} (35. Rb5 {was necessary.} Be6 36. Kh2) 35... Re8 {[%emt 0:01:14] Black is clearly winning.} 36. Bxf5 {[%emt 0:01:34] [#]} Bxf5 {[%emt 0:03:10]} 37. Rxe8+ {[%emt 0:00:05]} Kf7 {[%emt 0:00:03]} 38. Rd8 {[%emt 0:00:05]} Bxg6 {[%emt 0:00:15]} 39. Rxd6 {[%emt 0:00:03] [#]} b3 $1 {[%emt 0:02:25]} 40. Rxd5 {[%emt 0:00:00] Black must now prevent Rd7+.} c3 $1 {[%emt 0:00:00] Weighted Error Value: White=0.72/Black=0.26 (precise)} 0-1

[Event "Prague Festival-Challengers 2022"]
[Site "Prague"]
[Date "2022.06.13"]
[Round "5.1"]
[White "Michalik, Peter"]
[Black "Keymer, Vincent"]
[Result "0-1"]
[ECO "B51"]
[WhiteElo "2579"]
[BlackElo "2667"]
[Annotator "TA"]
[PlyCount "88"]
[EventDate "2022.06.07"]
[EventType "tourn"]
[EventCountry "CZE"]
[SourceTitle "playchess.com"]
[Source "ChessBase"]
[SourceQuality "1"]
[TimeControl "40/5400+30:1800+30"]

{[%evp 9,88,6,19,13,19,0,9,-6,-2,0,-11,-12,0,0,33,0,-9,-113,-39,-47,-22,-20,34,49,36,47,34,41,33,-39,-18,-36,-37,-32,-33,-31,0,0,0,0,0,0,0,-17,-13,-22,0,-88,-101,-89,-87,-114,-104,-108,0,-109,0,0,0,0,0,0,0,0,0,0,6,-42,-42,-239,-231,-230,-230,-237,-225,-401,-399,-566,-558,-938,-846]} 1. e4 {[%emt 0:00:03]} c5 {[%emt 0:00:04]} 2. Nf3 {[%emt 0:00:07]} d6 {[%emt 0:00:03]} 3. Bb5+ {[%emt 0:00:08]} Nd7 {[%emt 0:00:04]} 4. O-O {[%emt 0:00:07]} a6 {[%emt 0:01:26]} 5. Bd3 {[%emt 0:00:53]} Ngf6 {[%emt 0:01:38]} 6. Re1 {[%emt 0:00:47] B51: Sicilian: Moscow Variation (3 Bb5+) without 3...Bd7.} e6 {[%emt 0:00:47]} 7. Bf1 {[%emt 0:02:28]} b6 {[%emt 0:02:46]} 8. c4 {[%emt 0:04:06] The position is equal.} Bb7 {[%emt 0:02:59]} 9. Nc3 {[%emt 0:00:20]} Ne5 {[%emt 0:03:10]} 10. d4 {[%emt 0:00:24]} Nxf3+ {[%emt 0:06:47]} 11. gxf3 {[%emt 0:00:06] [#]} g6 $146 {[%emt 0:10:06]} ({Predecessor:} 11... Be7 12. d5 e5 13. f4 Bc8 14. fxe5 dxe5 15. f4 Bd6 16. Qf3 Qc7 17. f5 Be7 {1-0 (39) Niemann,H (2637)-Yilmaz,M (2626) Havana 2022}) 12. Bg5 {[%emt 0:08:47]} Be7 {[%emt 0:10:54]} 13. Bh6 {[%emt 0:06:11]} (13. Be3 $11) 13... g5 {[%emt 0:12:05]} (13... cxd4 $17 14. Qxd4 g5) 14. dxc5 $15 {[%emt 0:08:14]} bxc5 {[%emt 0:03:42]} 15. f4 {[%emt 0:08:08]} (15. Bxg5 Rg8 16. h4 Nh5 $19) 15... Rg8 {[%emt 0:05:38]} ({Better is} 15... gxf4 $11 16. Bxf4 Rg8+ 17. Bg2 Ng4) 16. fxg5 $14 {[%emt 0:06:15]} Bf8 $1 {[%emt 0:01:56]} 17. Bxf8 {[%emt 0:05:46]} (17. Qa4+ $2 Nd7 18. Kh1 Bxh6 19. gxh6 Qg5 $19) 17... Rxg5+ {[%emt 0:00:12]} 18. Bg2 {[%emt 0:00:12]} Kxf8 {[%emt 0:00:10]} 19. Qd2 {[%emt 0:06:41]} (19. Re3 $14) 19... Nh5 $15 {[%emt 0:02:43]} 20. Rad1 {[%emt 0:07:11]} e5 {[%emt 0:01:18] aiming for ...Nf4.} 21. Re3 {[%emt 0:03:01]} (21. Qxd6+ $2 Qxd6 22. Rxd6 Nf4 $19) 21... Rg6 {[%emt 0:02:35] And now ...Qg5 would win.} 22. Rh3 {[%emt 0:01:28]} Nf4 {[%emt 0:03:08]} (22... Rxg2+ 23. Kxg2 Nf4+ 24. Kf1 Nxh3 25. Qh6+ Ke8 26. Qxh3 $14) (22... Qd7 $5 {[%cal Rd7h3]} 23. Kh1 (23. Rxh5 Qg4 $17) 23... Nf4 $11) 23. Rg3 {[%emt 0:00:07]} Qh4 {[%emt 0:02:26]} 24. Rxg6 {[%emt 0:06:13]} hxg6 {[%emt 0:01:29]} 25. Qxd6+ {[%emt 0:00:05]} Kg8 {[%emt 0:00:05]} 26. f3 {[%emt 0:00:08] Inhibits Qg4.} Qg5 {[%emt 0:01:56][%csl Gf4][%cal Rg5g2][%mdl 1024] Black has compensation.} 27. Rd2 {[%emt 0:00:05]} Ne6 {[%emt 0:06:06] White must now prevent ...Rd8.} (27... Nxg2 28. Rxg2 Qe3+ 29. Rf2 Qg5+ 30. Rg2 Qe3+ 31. Rf2 Qg5+ 32. Kf1) 28. Rf2 {[%emt 0:05:35]} (28. Qd3 $1 $11 {keeps the balance.}) 28... Rd8 $17 {[%emt 0:01:49]} 29. Qb6 {[%emt 0:00:05] [#]} Nf4 $1 {[%emt 0:02:39]} 30. Kh1 {[%emt 0:01:35]} (30. Qxb7 Nh3+ 31. Kh1 Nxf2+ 32. Kg1 Nh3+ 33. Kh1 Qc1+) 30... Qh4 {[%emt 0:04:28]} 31. Kg1 {[%emt 0:03:45]} (31. Qxc5 $2 Nd3 32. Qe3 Nxf2+ $19) 31... Qg5 {[%emt 0:03:30] ( -> ...Nh3+). Black is more active.} 32. Kh1 $1 {[%emt 0:00:16]} (32. Qxb7 Nh3+ 33. Kh1 Nxf2+ 34. Kg1 Nh3+ 35. Kh1 Qc1+) 32... Ba8 {[%emt 0:05:37]} (32... Bc8 $17 33. Nd5 (33. Qxc5 $2 Nd3 $19) 33... Qh4 34. Nxf4 (34. Qxc5 $2 Nd3 $19) 34... Rd2) 33. Bf1 $11 {[%emt 0:00:51]} (33. Qxc5 $2 Nd3 34. Qb6 Nxf2+ 35. Qxf2 Qc1+ 36. Bf1 Rd2 $19) 33... Ne6 {[%emt 0:00:55]} 34. Bh3 {[%emt 0:04:45]} (34. Qxa6 $2 Qe3 35. Re2 Qxf3+ 36. Kg1 (36. Bg2 $2 Rd1+ 37. Nxd1 Qxe2 $19) 36... Kg7 $19) 34... Nf4 $40 {[%emt 0:00:04][%mdl 128] Black attacks.} 35. Bf1 {[%emt 0:00:04]} Ne6 {[%emt 0:00:33]} 36. Bh3 {[%emt 0:00:06]} ({Avoid the trap} 36. Qxa6 $2 Qe3 37. Re2 Qxf3+ 38. Kg1 (38. Bg2 $2 Rd1+ 39. Nxd1 Qxe2 $19) 38... Kg7 $19) 36... Nd4 {[%emt 0:00:06]} 37. Rg2 {[%emt 0:04:09]} Qe7 {[%emt 0:01:01]} 38. Rg3 {[%emt 0:00:28]} ({Of course not} 38. Qxa6 Nxf3 39. Rf2 Bb7 $17) (38. Nd5 $11 {might be stronger.} Qd6 39. Qxd6 Rxd6 40. Rf2) 38... Kg7 $15 {[%emt 0:01:29]} 39. Bf1 $2 {[%emt 0:05:53] White does not recover from this.} ({White should try} 39. Bf5 $15) 39... Rh8 $1 $19 {[%emt 0:00:46]} 40. h3 {[%emt 0:00:00]} Qh4 {[%emt 0:00:00]} 41. Kg2 {[%emt 0:07:10]} Qf4 {[%emt 0:11:25] ...Qd2+ is the strong threat.} 42. Qxc5 $2 {[%emt 0:02:35] [#]} (42. Ne2 Qd2 43. Kf2) 42... Qd2+ $1 {[%emt 0:01:22]} 43. Kh1 {[%emt 0:05:39] [#]} (43. Ne2 {was necessary.} Nxe2 44. Qxe5+ Kh7 45. Qg5 Qxb2 46. Bxe2 Qxe2+ 47. Kh1 Qxc4 48. Qf6) 43... Rh5 $1 {[%emt 0:01:44] Threatens to win with ...Qf2.} 44. Qc8 {[%emt 0:02:23]} Qf2 {[%emt 0:02:10] Weighted Error Value: White=0.42/Black=0.10 (very precise)} 0-1

[Event "Prague Festival-Challengers 2022"]
[Site "Prague"]
[Date "2022.06.13"]
[Round "5.2"]
[White "Niemann, Hans Moke"]
[Black "Sasikiran, Krishnan"]
[Result "1-0"]
[ECO "A20"]
[WhiteElo "2656"]
[BlackElo "2651"]
[Annotator "TA"]
[PlyCount "71"]
[EventDate "2022.06.07"]
[EventType "tourn"]
[EventCountry "CZE"]
[SourceTitle "playchess.com"]
[Source "ChessBase"]
[SourceQuality "1"]
[TimeControl "40/5400+30:1800+30"]

{[%evp 11,71,10,22,5,4,9,16,18,14,15,11,15,17,0,13,28,72,79,66,90,101,85,86,99,103,76,105,97,91,113,135,92,89,89,96,95,69,64,94,116,105,95,151,143,155,146,99,-27,37,4,5,0,138,116,656,651,961,968,29972,29968,29998,29999]} 1. c4 {[%emt 0:01:32]} e5 {[%emt 0:00:28]} 2. g3 {[%emt 0:03:23]} Nf6 {[%emt 0:00:09]} 3. Bg2 {[%emt 0:00:08]} d5 {[%emt 0:00:16]} 4. cxd5 {[%emt 0:00:11]} Nxd5 {[%emt 0:00:06]} 5. Nf3 {[%emt 0:00:08]} Nc6 {[%emt 0:00:04]} 6. O-O {[%emt 0:00:12]} Nb6 {[%emt 0:00:43]} 7. b3 {[%emt 0:00:10] A20: English Opening: 1...e5.} Be6 {[%emt 0:02:29] is recently more successful than 7...Be7.} 8. Bb2 {[%emt 0:00:26]} f6 $1 {[%emt 0:01:03]} 9. Nc3 {[%emt 0:00:12] The position is equal.} Qd7 {[%emt 0:01:31]} 10. Rc1 {[%emt 0:00:31]} O-O-O {[%emt 0:07:43]} 11. Qc2 {[%emt 0:00:06]} Kb8 {[%emt 0:05:09]} 12. Rfd1 {[%emt 0:00:10]} Bb4 {[%emt 0:16:53] [#]} 13. d4 $146 {[%emt 0:12:40]} ({Predecessor:} 13. Ne4 Qe7 14. d4 exd4 15. Nxd4 Nxd4 16. Rxd4 Rxd4 17. Bxd4 Bf5 18. Bc5 Bxc5 {½-½ (18) Beltins,G (2143)-Castle Jr,T (2147) ICCF email 2019}) 13... Bxc3 {[%emt 0:03:29]} 14. Bxc3 {[%emt 0:03:33][%cal Rd4e5]} e4 {[%emt 0:01:16]} 15. Qxe4 {[%emt 0:01:58]} Bf5 {[%emt 0:02:36]} 16. Qf4 {[%emt 0:09:13] e4 is the strong threat.} Nd5 {[%emt 0:06:27]} 17. Qd2 {[%emt 0:00:10]} Rhe8 {[%emt 0:02:41]} 18. Bb2 {[%emt 0:02:13]} g5 {[%emt 0:10:19]} 19. Ne1 {[%emt 0:04:02]} h5 {[%emt 0:08:57]} 20. Nd3 {[%emt 0:02:55]} h4 {[%emt 0:02:22]} 21. Rc5 {[%emt 0:17:13]} Qe6 {[%emt 0:08:07]} 22. Rxd5 {[%emt 0:07:26]} Rxd5 {[%emt 0:00:51]} 23. Nc5 {[%emt 0:07:11]} Rxc5 {[%emt 0:04:56]} 24. dxc5 {[%emt 0:00:08][%cal Oe2e4]} Qxe2 {[%emt 0:00:21]} 25. Qxe2 {[%emt 0:00:10]} (25. Bxf6 $2 Qxd2 26. Rf1 h3 $19) 25... Rxe2 {[%emt 0:00:05]} 26. Bxf6 {[%emt 0:00:06]} h3 {[%emt 0:00:20] [#]} (26... hxg3 $142 27. fxg3 (27. hxg3 Rxa2 28. Re1 Bd7 $16) 27... g4) 27. Bf1 $1 $16 {[%emt 0:03:39] A strong pair of Bishops.} Rxa2 {[%emt 0:01:26]} 28. Bxg5 {[%emt 0:00:08]} a5 {[%emt 0:03:00]} (28... Ra3 $142) 29. Bf4 {[%emt 0:00:25]} ({White should play} 29. Bf6 $16) 29... Bg4 {[%emt 0:01:06]} (29... Be6 $11) 30. f3 {[%emt 0:03:22]} (30. Rd3 $5 {[%cal Rf2f3]}) 30... Bxf3 {[%emt 0:00:43]} 31. Rd7 {[%emt 0:00:24]} Bg2 {[%emt 0:03:54]} (31... Bg4 $1 $11 {remains equal.} 32. Rxc7 Ka7) 32. Bc4 {[%emt 0:01:03]} ({Don't blunder} 32. Bxc7+ $2 Kc8 33. Rf7 (33. Rh7 $2 Ra1 $19) 33... Ra1 $19) ({Not} 32. Rxc7 Ka7 33. Rf7 Nd4 $15) 32... Bf3 $2 {[%emt 0:04:13][%mdl 8192] Loses the game.} (32... Be4 $16) 33. Bxc7+ $18 {[%emt 0:00:24]} Kc8 {[%emt 0:03:17] [#]} 34. Be6 $1 {[%emt 0:00:38][%cal Rd7f7]} Rg2+ {[%emt 0:00:00]} 35. Kf1 {[%emt 0:00:08][%cal Rd7e7]} Re2 {[%emt 0:00:00]} 36. Rd8+ {[%emt 0:00:06] Weighted Error Value: White=0.13 (very precise) /Black=0.58} 1-0

[Event "Prague Festival-Challengers 2022"]
[Site "Prague"]
[Date "2022.06.13"]
[Round "5.3"]
[White "Abdusattorov, Nodirbek"]
[Black "Stocek, Jiri"]
[Result "1-0"]
[ECO "B55"]
[WhiteElo "2661"]
[BlackElo "2533"]
[Annotator "TA"]
[PlyCount "55"]
[EventDate "2022.06.07"]
[EventType "tourn"]
[EventCountry "CZE"]
[SourceTitle "playchess.com"]
[Source "ChessBase"]
[SourceQuality "1"]
[TimeControl "40/5400+30:1800+30"]

{[%evp 9,55,0,6,11,22,21,22,12,16,15,26,13,37,0,58,42,95,92,152,91,88,93,86,84,177,182,400,405,391,398,404,319,431,417,400,409,380,373,493,496,562,552,552,526,588,553,510,510]} 1. e4 {[%emt 0:00:08]} c5 {[%emt 0:00:17]} 2. Nf3 {[%emt 0:00:09]} d6 {[%emt 0:00:31]} 3. d4 {[%emt 0:00:11]} cxd4 {[%emt 0:00:24]} 4. Nxd4 {[%emt 0:00:05]} Nf6 {[%emt 0:00:06]} 5. Bd3 {[%emt 0:00:17]} Nc6 {[%emt 0:26:06]} 6. Be3 {[%emt 0:00:24] B55: Sicilian: 2...d6 3 d4 cxd4 4 Nxd4 Nf6 5 f3.} e5 {[%emt 0:07:45]} 7. Nxc6 {[%emt 0:02:05]} bxc6 {[%emt 0:00:12]} 8. O-O {[%emt 0:01:07] [#] The position is equal.} Ng4 $146 {[%emt 0:15:02]} ({Predecessor:} 8... Be7 9. c4 O-O 10. Nc3 Rb8 11. b3 Qc7 12. h3 Be6 13. Qf3 Rfd8 14. Rac1 Qb7 {1-0 (28) Moeller,M (1206)-Gold,M (1165) Playchess.com INT 2020}) 9. Bd2 {[%emt 0:00:59]} Rb8 {[%emt 0:00:24]} 10. b3 {[%emt 0:13:47]} d5 {[%emt 0:03:20]} 11. Nc3 {[%emt 0:01:10]} Bc5 {[%emt 0:04:38]} (11... Qh4 12. h3 d4 13. hxg4 $16) (11... Bd6 $11) 12. Qf3 {[%emt 0:08:09]} O-O {[%emt 0:06:11]} (12... Qh4 13. h3 $18) ({Black should try} 12... d4 $14) 13. exd5 $16 {[%emt 0:06:56]} (13. h3 f5 14. exd5 (14. hxg4 $2 fxe4 15. Qg3 exd3 $19) 14... e4 $15) 13... f5 {[%emt 0:02:28]} (13... Qh4 14. h3 cxd5 15. Nxd5 $16 (15. hxg4 e4 $16)) (13... cxd5 $142 14. Nxd5 Be6) 14. Bc4 {[%emt 0:01:43]} (14. dxc6 $142 {Threatens to win with Qd5+.} Be6 15. Rae1) 14... Kh8 {[%emt 0:03:33]} 15. h3 $36 {[%emt 0:02:23][%mdl 2048] Keeping Black busy.} Nf6 {[%emt 0:01:50]} 16. Rad1 {[%emt 0:03:25]} e4 {[%emt 0:07:48]} (16... cxd5 $16 {is a better defense.} 17. Nxd5 Bb7) 17. Qg3 $18 {[%emt 0:00:08]} f4 $2 {[%emt 0:04:50]} (17... Rb6) 18. Bxf4 {[%emt 0:06:12]} Nh5 {[%emt 0:01:02] [#]} 19. dxc6 $1 {[%emt 0:00:06][%cal Bd5c6,Bc6c7][%mdl 32]} Qe8 {[%emt 0:04:49]} 20. c7 {[%emt 0:01:32]} ({Not} 20. Bxb8 Nxg3 21. Bxg3 Qxc6 $18) (20. Qg5 Be7 21. Qxe7 Qxe7 $18) 20... Ra8 {[%emt 0:01:21] [#]} 21. Rd8 $1 {[%emt 0:08:14]} Nxg3 {[%emt 0:00:26]} 22. Rxe8 {[%emt 0:00:06] Chess con chili. Active counter play!} Rxe8 {[%emt 0:00:04]} 23. Bxg3 {[%emt 0:00:06]} Bb7 {[%emt 0:01:54]} 24. b4 {[%emt 0:02:39] White is clearly winning.} Bd4 {[%emt 0:01:27]} 25. Nb5 {[%emt 0:01:28]} Ba6 {[%emt 0:01:05]} 26. Rd1 {[%emt 0:03:01]} Bb6 {[%emt 0:01:28]} 27. Nd6 {[%emt 0:00:05]} Bxc4 {[%emt 0:01:58]} 28. Nxc4 {[%emt 0:00:02] Weighted Error Value: White=0.09 (flawless) /Black=0.43} 1-0

[Event "Prague Festival-Challengers 2022"]
[Site "Prague"]
[Date "2022.06.13"]
[Round "5.4"]
[White "Krzyzanowski, Marcin"]
[Black "Warmerdam, Max"]
[Result "0-1"]
[ECO "E68"]
[WhiteElo "2535"]
[BlackElo "2614"]
[Annotator "TA"]
[PlyCount "74"]
[EventDate "2022.06.07"]
[EventType "tourn"]
[EventCountry "CZE"]
[SourceTitle "playchess.com"]
[Source "ChessBase"]
[SourceQuality "1"]
[TimeControl "40/5400+30:1800+30"]

{[%evp 22,74,32,31,29,31,64,38,27,27,52,27,22,8,55,49,58,35,31,0,18,0,18,-54,-40,-39,-39,-97,-97,-106,-75,-111,-135,-138,-119,-138,-68,-62,-77,-274,-266,-253,-230,-430,-394,-547,-531,-745,-606,-1122,-1021,-909,-896,-760,-593]} 1. Nf3 {[%emt 0:00:03]} Nf6 {[%emt 0:00:13]} 2. g3 {[%emt 0:00:06]} g6 {[%emt 0:00:49]} 3. Bg2 {[%emt 0:00:06]} Bg7 {[%emt 0:00:07]} 4. O-O {[%emt 0:01:26]} O-O {[%emt 0:02:00]} 5. c4 {[%emt 0:04:15]} d6 {[%emt 0:00:27]} 6. d4 {[%emt 0:00:53]} Nbd7 {[%emt 0:00:05]} 7. Nc3 {[%emt 0:00:58]} e5 {[%emt 0:00:06]} 8. e4 {[%emt 0:00:17]} exd4 {[%emt 0:00:06]} 9. Nxd4 {[%emt 0:00:03]} Nc5 {[%emt 0:00:06]} 10. h3 {[%emt 0:00:38]} Re8 {[%emt 0:00:05]} 11. Re1 {[%emt 0:00:43]} h6 {[%emt 0:00:08]} 12. Rb1 {[%emt 0:03:15] 12.Qc2 is the modern continuation.} a5 {[%emt 0:00:23] E68: King's Indian: Fianchetto: 6...Nbd7 7 0-0 e5 8 e4.} 13. b3 {[%emt 0:08:15]} a4 $5 {[%emt 0:09:04][%mdl 4] A promising side line.} 14. Ndb5 {[%emt 0:13:59]} (14. Nxa4 Nfxe4 15. Nb5 Re7 $15) (14. b4 $5 {[%cal Rb4c5]} Ne6 15. Ndb5 $14) 14... axb3 {[%emt 0:04:26] White is slightly better.} 15. axb3 {[%emt 0:00:04][%cal Oe4e5]} Bd7 {[%emt 0:08:00]} 16. Bb2 {[%emt 0:10:59] [#]} (16. b4 $5 {[%cal Rb4c5]} Ne6 17. f4 $11) 16... Qc8 $146 {[%emt 0:06:12]} ({Predecessor:} 16... Ne6 17. Kh2 h5 18. Ra1 Rxa1 19. Qxa1 h4 20. Nd5 Nxd5 21. exd5 Bxb2 22. Qxb2 Ng7 23. Rxe8+ {½-½ (23) Kolev,A (2495)-Pavlovic,M (2495) Barbera del Valles 1994}) 17. Kh2 {[%emt 0:03:10]} Bxb5 {[%emt 0:25:18]} (17... h5 $11) 18. cxb5 $14 {[%emt 0:10:00]} Qe6 {[%emt 0:00:39]} 19. b4 {[%emt 0:02:21]} (19. Na4 {is more complex.} Nxb3 20. Bxf6 Bxf6 21. e5) 19... Ncd7 {[%emt 0:00:44]} 20. f4 {[%emt 0:15:53]} Qc4 {[%emt 0:03:04]} 21. Qf3 {[%emt 0:01:27]} Nb6 {[%emt 0:03:29]} 22. e5 {[%emt 0:04:33]} (22. Rec1 $11 Qb3 23. Ba1) 22... dxe5 $15 {[%emt 0:00:44]} 23. fxe5 {[%emt 0:00:43]} Nfd7 {[%emt 0:00:44] Pair of Knights!} 24. Ne4 {[%emt 0:06:03]} (24. Qxb7 $15 Rab8 25. Qe4) 24... Nxe5 $17 {[%emt 0:04:35]} 25. Bxe5 {[%emt 0:03:43]} Rxe5 {[%emt 0:06:43]} 26. Rbc1 {[%emt 0:02:00]} Qxb4 {[%emt 0:04:22]} 27. Rxc7 {[%emt 0:00:58]} Rf5 {[%emt 0:04:08]} 28. Qe2 {[%emt 0:00:35]} Rb8 {[%emt 0:04:35]} ({Inferior is} 28... Qxb5 29. Qxb5 Rxb5 30. Rxf7 $11) (28... Be5 $17 29. Rxb7 Nc4) 29. Rf1 {[%emt 0:01:31]} Be5 {[%emt 0:02:32]} 30. Rxf5 $2 {[%emt 0:02:50] Loses the game.} (30. Rcc1 $17 {is a better defense.}) 30... gxf5 $19 {[%emt 0:01:06][%cal Bg6f5,Bf5e4][%mdl 32]} 31. Rc5 {[%emt 0:01:42] [#]} Qd4 {[%emt 0:01:01]} ({Resist} 31... fxe4 32. Rxe5 Rf8 33. Rxe4 $18) ({Weaker is} 31... Bxg3+ 32. Kxg3 fxe4 33. Qg4+ Kf8 34. Rf5 Qa3+ 35. Kh4 $15) 32. Qh5 $2 {[%emt 0:00:52]} (32. Nf6+ {keeps fighting.} Bxf6 33. Rxf5) 32... Nd7 {[%emt 0:00:20]} (32... fxe4 $2 33. Rxe5 e3 34. Re4 $16) 33. Rc1 {[%emt 0:01:50] Hoping for Rd1.} fxe4 {[%emt 0:00:56] Black is clearly winning.} 34. Rd1 {[%emt 0:00:45]} Nf6 {[%emt 0:00:27] aiming for ...Qc3.} 35. Qxh6 {[%emt 0:00:31]} Qxd1 {[%emt 0:00:37]} 36. Qg5+ {[%emt 0:00:02]} Kf8 {[%emt 0:00:05] [#] ( -> ...Bd4)} 37. Qxe5 {[%emt 0:00:05]} Nd7 {[%emt 0:00:05] Weighted Error Value: White=0.86/Black=0.18 (very precise)} 0-1